[Event "Early-Titled-Tuesday-Blitz-March-05-2024"]
[Site "Chess.com"]
[Date "2024.03.05"]
[Round "7"]
[White "SpeedofLight0"]
[Black "ChessLebaneseSalah"]
[Result "1-0"]
[WhiteElo "3064"]
[BlackElo "2577"]
[TimeControl "180+1"]
[EndTime "9:18:20 PST"]
[Termination "SpeedofLight0 won by checkmate"]

1. d4 {[%clk 0:03:00.9]} 1... d5 {[%clk 0:02:59.8]} 2. Nc3 {[%clk 0:03:01.1]}
2... Nf6 {[%clk 0:02:59.9]} 3. Bf4 {[%clk 0:03:01.8]} 3... e6 {[%clk 0:02:59.6]}
4. e3 {[%clk 0:03:02]} 4... a6 {[%clk 0:02:58.8]} 5. Bd3 {[%clk 0:03:01.6]} 5...
c5 {[%clk 0:02:52.6]} 6. Nf3 {[%clk 0:03:01.3]} 6... Nc6 {[%clk 0:02:50.7]} 7.
O-O {[%clk 0:03:00.6]} 7... cxd4 {[%clk 0:02:48.5]} 8. exd4 {[%clk 0:03:00.3]}
8... Bd6 {[%clk 0:02:48.9]} 9. Bg5 {[%clk 0:03:00]} 9... O-O {[%clk 0:02:46.8]}
10. Ne2 {[%clk 0:02:59.2]} 10... h6 {[%clk 0:02:39]} 11. Bh4 {[%clk 0:02:58.3]}
11... g5 {[%clk 0:02:30]} 12. Bg3 {[%clk 0:02:54.7]} 12... Kg7 {[%clk
0:02:27.2]} 13. c3 {[%clk 0:02:51.9]} 13... b5 {[%clk 0:02:13.1]} 14. Ne5 {[%clk
0:02:51.1]} 14... Bb7 {[%clk 0:01:56]} 15. f4 {[%clk 0:02:50.7]} 15... Ne4
{[%clk 0:01:53.7]} 16. Qc1 {[%clk 0:02:39.7]} 16... f5 {[%clk 0:01:46.5]} 17.
Qe3 {[%clk 0:02:38.2]} 17... Bxe5 {[%clk 0:01:44.5]} 18. dxe5 {[%clk 0:02:36.3]}
18... Qe7 {[%clk 0:01:38.5]} 19. Rad1 {[%clk 0:02:32]} 19... Rad8 {[%clk
0:01:37.1]} 20. Be1 {[%clk 0:02:28.6]} 20... Na5 {[%clk 0:01:34.6]} 21. Nd4
{[%clk 0:02:23.5]} 21... Nc4 {[%clk 0:01:29.3]} 22. Qe2 {[%clk 0:02:22.4]} 22...
Nc5 {[%clk 0:01:22.9]} 23. Bb1 {[%clk 0:02:20.8]} 23... g4 {[%clk 0:01:14]} 24.
b3 {[%clk 0:02:19.1]} 24... Na3 {[%clk 0:01:06.6]} 25. c4 {[%clk 0:02:19.3]}
25... dxc4 {[%clk 0:01:00.1]} 26. Bb4 {[%clk 0:02:18.1]} 26... Nxb1 {[%clk
0:00:57.6]} 27. Qe3 {[%clk 0:02:11.7]} 27... Rc8 {[%clk 0:00:46.5]} 28. Rxb1
{[%clk 0:01:59.1]} 28... Kf7 {[%clk 0:00:42.4]} 29. bxc4 {[%clk 0:01:56.5]}
29... Be4 {[%clk 0:00:31.9]} 30. Rbc1 {[%clk 0:01:54.4]} 30... Rfd8 {[%clk
0:00:20.5]} 31. cxb5 {[%clk 0:01:53.2]} 31... axb5 {[%clk 0:00:20.7]} 32. Nxb5
{[%clk 0:01:52.1]} 32... Qb7 {[%clk 0:00:17.9]} 33. Rxc5 {[%clk 0:01:50.8]}
33... Rxc5 {[%clk 0:00:16]} 34. Qxc5 {[%clk 0:01:51.7]} 34... Bxg2 {[%clk
0:00:09.6]} 35. Nd6+ {[%clk 0:01:48.5]} 35... Rxd6 {[%clk 0:00:09.4]} 36. Qxd6
{[%clk 0:01:49.4]} 36... Bxf1 {[%clk 0:00:06]} 37. Qf8+ {[%clk 0:01:28.8]} 37...
Kg6 {[%clk 0:00:06.3]} 38. Qg8+ {[%clk 0:01:29.1]} 38... Kh5 {[%clk 0:00:05.5]}
39. Qe8+ {[%clk 0:01:29.3]} 39... Kh4 {[%clk 0:00:05.5]} 40. Be7+ {[%clk
0:01:28.9]} 40... Kh3 {[%clk 0:00:05]} 41. Qh5# {[%clk 0:01:29]} 1-0

[Event "Early-Titled-Tuesday-Blitz-March-05-2024"]
[Site "Chess.com"]
[Date "2024.03.05"]
[Round "7"]
[White "sergeikim"]
[Black "Ducke13"]
[Result "0-1"]
[WhiteElo "2567"]
[BlackElo "2365"]
[TimeControl "180+1"]
[EndTime "9:18:20 PST"]
[Termination "Ducke13 won by resignation"]

1. d4 {[%clk 0:03:00.9]} 1... Nf6 {[%clk 0:02:54.7]} 2. c4 {[%clk 0:03:00.6]}
2... g6 {[%clk 0:02:54.5]} 3. Nc3 {[%clk 0:03:00.8]} 3... d5 {[%clk 0:02:54.3]}
4. cxd5 {[%clk 0:03:00.5]} 4... Nxd5 {[%clk 0:02:55]} 5. e4 {[%clk 0:03:00.6]}
5... Nxc3 {[%clk 0:02:54.8]} 6. bxc3 {[%clk 0:03:01.4]} 6... Bg7 {[%clk
0:02:55.5]} 7. Bc4 {[%clk 0:03:01.2]} 7... c5 {[%clk 0:02:55.4]} 8. Ne2 {[%clk
0:03:00.7]} 8... O-O {[%clk 0:02:54]} 9. O-O {[%clk 0:03:00]} 9... Nc6 {[%clk
0:02:52]} 10. Be3 {[%clk 0:02:59.8]} 10... Na5 {[%clk 0:02:52.5]} 11. Bd3 {[%clk
0:02:59.2]} 11... b6 {[%clk 0:02:52.6]} 12. Qd2 {[%clk 0:02:58.4]} 12... e5
{[%clk 0:02:47.9]} 13. Bh6 {[%clk 0:02:56.3]} 13... cxd4 {[%clk 0:02:35]} 14.
cxd4 {[%clk 0:02:55.6]} 14... exd4 {[%clk 0:02:31.6]} 15. Bxg7 {[%clk
0:02:55.7]} 15... Kxg7 {[%clk 0:02:32.5]} 16. f4 {[%clk 0:02:55.7]} 16... f6
{[%clk 0:02:32.2]} 17. f5 {[%clk 0:02:54.2]} 17... Rf7 {[%clk 0:02:30.9]} 18.
Nf4 {[%clk 0:02:49.4]} 18... Qd6 {[%clk 0:02:20.1]} 19. fxg6 {[%clk 0:02:45.3]}
19... hxg6 {[%clk 0:02:19.7]} 20. Nxg6 {[%clk 0:02:45.3]} 20... Bb7 {[%clk
0:02:00.5]} 21. Nh4 {[%clk 0:02:42.6]} 21... Qf8 {[%clk 0:01:33.5]} 22. Nf5+
{[%clk 0:02:40.3]} 22... Kh8 {[%clk 0:01:26]} 23. Rf4 {[%clk 0:02:33.7]} 23...
Rh7 {[%clk 0:01:25.8]} 24. Raf1 {[%clk 0:02:33.5]} 24... Re8 {[%clk 0:01:12.4]}
25. Ng3 {[%clk 0:02:28.3]} 25... Qh6 {[%clk 0:01:09.2]} 26. h3 {[%clk
0:02:17.1]} 26... Rg8 {[%clk 0:01:02.1]} 27. R1f3 {[%clk 0:02:11.3]} 27... Nc6
{[%clk 0:00:38.4]} 28. Nf5 {[%clk 0:02:10.2]} 28... Qf8 {[%clk 0:00:26.9]} 29.
Qf2 {[%clk 0:02:00.1]} 29... Ne5 {[%clk 0:00:26.4]} 30. Rg3 {[%clk 0:02:00.3]}
30... Nxd3 {[%clk 0:00:18.4]} 31. Rxd3 {[%clk 0:01:59.4]} 31... Qc8 {[%clk
0:00:09.4]} 32. Qxd4 {[%clk 0:01:43.5]} 32... Qc1+ {[%clk 0:00:07.4]} 33. Rf1
{[%clk 0:01:42.5]} 33... Qg5 {[%clk 0:00:07.6]} 34. Rg3 {[%clk 0:01:39.7]} 34...
Qh6 {[%clk 0:00:01.7]} 35. Qxf6+ {[%clk 0:01:38.2]} 35... Qxf6 {[%clk
0:00:01.1]} 0-1

[Event "Early-Titled-Tuesday-Blitz-March-05-2024"]
[Site "Chess.com"]
[Date "2024.03.05"]
[Round "7"]
[White "LeoLV10"]
[Black "TheCavemanChess"]
[Result "0-1"]
[WhiteElo "2489"]
[BlackElo "2716"]
[TimeControl "180+1"]
[EndTime "9:18:31 PST"]
[Termination "TheCavemanChess won by checkmate"]

1. e4 {[%clk 0:03:00.9]} 1... c5 {[%clk 0:02:22.7]} 2. Nf3 {[%clk 0:02:59]} 2...
e6 {[%clk 0:02:23]} 3. d4 {[%clk 0:02:59.4]} 3... cxd4 {[%clk 0:02:23.9]} 4.
Nxd4 {[%clk 0:03:00.2]} 4... Nf6 {[%clk 0:02:24.4]} 5. Nc3 {[%clk 0:03:00.5]}
5... Nc6 {[%clk 0:02:24.2]} 6. Nxc6 {[%clk 0:03:01]} 6... bxc6 {[%clk
0:02:24.5]} 7. e5 {[%clk 0:03:01.9]} 7... Nd5 {[%clk 0:02:25.2]} 8. Ne4 {[%clk
0:03:02.8]} 8... Qc7 {[%clk 0:02:25.2]} 9. f4 {[%clk 0:03:02.8]} 9... Qb6 {[%clk
0:02:25.7]} 10. c4 {[%clk 0:03:02.7]} 10... Bb4+ {[%clk 0:02:26.1]} 11. Ke2
{[%clk 0:02:59.9]} 11... f5 {[%clk 0:02:26.3]} 12. Ng3 {[%clk 0:02:53.1]} 12...
g5 {[%clk 0:01:55.3]} 13. fxg5 {[%clk 0:02:41.3]} 13... Ne7 {[%clk 0:01:53.4]}
14. Kf3 {[%clk 0:02:08.5]} 14... Ng6 {[%clk 0:01:48.6]} 15. Nh5 {[%clk
0:01:47.4]} 15... Nxe5+ {[%clk 0:01:26.7]} 16. Kg3 {[%clk 0:01:47]} 16... Ng6
{[%clk 0:01:23.9]} 17. Be2 {[%clk 0:01:29.9]} 17... d5 {[%clk 0:01:23.5]} 18.
cxd5 {[%clk 0:01:28.1]} 18... Bd6+ {[%clk 0:01:20.2]} 19. Bf4 {[%clk 0:01:19.6]}
19... Nxf4 {[%clk 0:01:18.4]} 20. Nxf4 {[%clk 0:01:20.5]} 20... Qe3+ {[%clk
0:01:17.7]} 21. Bf3 {[%clk 0:01:13]} 21... Qxf4+ {[%clk 0:01:16.5]} 22. Kf2
{[%clk 0:01:13.3]} 22... Bc5+ {[%clk 0:01:13.8]} 23. Ke1 {[%clk 0:01:10.9]}
23... cxd5 {[%clk 0:01:00.9]} 24. Bh5+ {[%clk 0:01:04.9]} 24... Ke7 {[%clk
0:01:00.4]} 25. Qc2 {[%clk 0:00:51]} 25... Bb4+ {[%clk 0:00:52.7]} 26. Kd1
{[%clk 0:00:51.1]} 26... Ba6 {[%clk 0:00:49.5]} 27. Be2 {[%clk 0:00:16.8]} 27...
Qd4+ {[%clk 0:00:45.5]} 28. Kc1 {[%clk 0:00:16.7]} 28... Rac8 {[%clk 0:00:44.4]}
29. Bxa6 {[%clk 0:00:16.9]} 29... Qd2+ {[%clk 0:00:44.7]} 30. Kb1 {[%clk
0:00:17.1]} 30... Qxc2# {[%clk 0:00:45.6]} 0-1

[Event "Early-Titled-Tuesday-Blitz-March-05-2024"]
[Site "Chess.com"]
[Date "2024.03.05"]
[Round "7"]
[White "Der_Balak_3Halak"]
[Black "HanSchut"]
[Result "1-0"]
[WhiteElo "2457"]
[BlackElo "2305"]
[TimeControl "180+1"]
[EndTime "9:18:33 PST"]
[Termination "Der_Balak_3Halak won by resignation"]

1. Nf3 {[%clk 0:03:00.9]} 1... Nf6 {[%clk 0:02:57]} 2. g3 {[%clk 0:03:01.8]}
2... g6 {[%clk 0:02:57.6]} 3. Bg2 {[%clk 0:03:02.2]} 3... Bg7 {[%clk 0:02:58.4]}
4. O-O {[%clk 0:03:02.9]} 4... O-O {[%clk 0:02:59.2]} 5. d3 {[%clk 0:03:03.7]}
5... d5 {[%clk 0:02:59.8]} 6. Re1 {[%clk 0:03:03.5]} 6... c5 {[%clk 0:03:00.3]}
7. Bf4 {[%clk 0:03:03.7]} 7... Nc6 {[%clk 0:03:00.5]} 8. Ne5 {[%clk 0:03:01.6]}
8... Nh5 {[%clk 0:02:49.2]} 9. Nxc6 {[%clk 0:02:58.7]} 9... bxc6 {[%clk
0:02:50.1]} 10. Bc1 {[%clk 0:02:58.8]} 10... e5 {[%clk 0:02:47.9]} 11. e4 {[%clk
0:02:56.6]} 11... f5 {[%clk 0:02:41.2]} 12. exd5 {[%clk 0:02:51.8]} 12... cxd5
{[%clk 0:02:38.7]} 13. c4 {[%clk 0:02:52.3]} 13... Be6 {[%clk 0:02:34.9]} 14.
Nc3 {[%clk 0:02:41.1]} 14... d4 {[%clk 0:02:33.9]} 15. Bxa8 {[%clk 0:02:25.9]}
15... Qxa8 {[%clk 0:02:34.8]} 16. Nd5 {[%clk 0:02:26.2]} 16... Bxd5 {[%clk
0:01:47.8]} 17. cxd5 {[%clk 0:02:27.1]} 17... Rb8 {[%clk 0:01:31.8]} 18. b3
{[%clk 0:02:09.2]} 18... Qxd5 {[%clk 0:01:30]} 19. Ba3 {[%clk 0:02:09.3]} 19...
e4 {[%clk 0:01:19]} 20. Rc1 {[%clk 0:02:05.8]} 20... Rc8 {[%clk 0:01:18.1]} 21.
Qc2 {[%clk 0:02:04.4]} 21... Nf6 {[%clk 0:01:09.7]} 22. Qc4 {[%clk 0:01:53.7]}
22... Qxc4 {[%clk 0:00:42.7]} 23. Rxc4 {[%clk 0:01:54.6]} 23... exd3 {[%clk
0:00:40.3]} 24. Rd1 {[%clk 0:01:50.2]} 24... Ne4 {[%clk 0:00:30.2]} 25. Rxd3
{[%clk 0:01:48.4]} 25... Bf8 {[%clk 0:00:20.4]} 26. Rdxd4 {[%clk 0:01:44.9]}
26... Re8 {[%clk 0:00:17.1]} 27. Rd1 {[%clk 0:01:41.3]} 27... f4 {[%clk
0:00:15]} 28. Bb2 {[%clk 0:01:37.3]} 28... fxg3 {[%clk 0:00:14.6]} 29. hxg3
{[%clk 0:01:37.1]} 29... Nd6 {[%clk 0:00:13.4]} 30. Rxc5 {[%clk 0:01:35]} 30...
Nf5 {[%clk 0:00:13.9]} 31. Rc7 {[%clk 0:01:34.3]} 31... a5 {[%clk 0:00:13.2]}
32. Bc3 {[%clk 0:01:27.6]} 32... Bd6 {[%clk 0:00:12.9]} 33. Ra7 {[%clk
0:01:25.8]} 33... Bc5 {[%clk 0:00:10.9]} 34. Rxa5 {[%clk 0:01:24.9]} 34... Bb6
{[%clk 0:00:11.5]} 35. Rb5 {[%clk 0:01:23.7]} 35... Rb8 {[%clk 0:00:10.3]} 36.
a4 {[%clk 0:01:20.2]} 36... Nxg3 {[%clk 0:00:09.7]} 37. Kg2 {[%clk 0:01:18.4]}
37... Nf5 {[%clk 0:00:09.4]} 38. a5 {[%clk 0:01:17.3]} 38... Bc7 {[%clk
0:00:09.9]} 39. Rxb8+ {[%clk 0:01:17.2]} 39... Bxb8 {[%clk 0:00:10.2]} 40. Rd8+
{[%clk 0:01:15.9]} 1-0

[Event "Early-Titled-Tuesday-Blitz-March-05-2024"]
[Site "Chess.com"]
[Date "2024.03.05"]
[Round "7"]
[White "Batica1984"]
[Black "only_strong_moves"]
[Result "1-0"]
[WhiteElo "2774"]
[BlackElo "2580"]
[TimeControl "180+1"]
[EndTime "9:18:39 PST"]
[Termination "Batica1984 won by resignation"]

1. e4 {[%clk 0:02:49.6]} 1... e5 {[%clk 0:02:57.1]} 2. Nf3 {[%clk 0:02:45.6]}
2... Nc6 {[%clk 0:02:57.4]} 3. d4 {[%clk 0:02:44.4]} 3... exd4 {[%clk
0:02:58.3]} 4. Nxd4 {[%clk 0:02:44.7]} 4... Nf6 {[%clk 0:02:58.4]} 5. Nxc6
{[%clk 0:02:44]} 5... bxc6 {[%clk 0:02:59.1]} 6. Qe2 {[%clk 0:02:44.3]} 6... Qe7
{[%clk 0:02:58.5]} 7. Nc3 {[%clk 0:02:39.9]} 7... d5 {[%clk 0:02:56]} 8. exd5
{[%clk 0:02:39]} 8... Qxe2+ {[%clk 0:02:47.4]} 9. Bxe2 {[%clk 0:02:39.9]} 9...
cxd5 {[%clk 0:02:47.6]} 10. Nb5 {[%clk 0:02:38.5]} 10... Bb4+ {[%clk 0:02:41.8]}
11. c3 {[%clk 0:02:36.8]} 11... Ba5 {[%clk 0:02:42]} 12. Bf4 {[%clk 0:02:36.8]}
12... O-O {[%clk 0:01:51.3]} 13. Nxc7 {[%clk 0:02:28.8]} 13... Bxc7 {[%clk
0:01:51.2]} 14. Bxc7 {[%clk 0:02:28.5]} 14... Re8 {[%clk 0:01:52.1]} 15. Kf1
{[%clk 0:02:07.7]} 15... Ne4 {[%clk 0:01:51.5]} 16. Rd1 {[%clk 0:02:05.5]} 16...
Bb7 {[%clk 0:01:47.3]} 17. f3 {[%clk 0:02:03.4]} 17... Nc5 {[%clk 0:01:45.8]}
18. Kf2 {[%clk 0:02:02.8]} 18... Re6 {[%clk 0:01:41.9]} 19. Rd2 {[%clk
0:01:58.6]} 19... Rae8 {[%clk 0:01:36]} 20. Rhd1 {[%clk 0:01:56.5]} 20... g5
{[%clk 0:01:33.4]} 21. b3 {[%clk 0:01:48.5]} 21... h5 {[%clk 0:01:14.3]} 22. h3
{[%clk 0:01:43.4]} 22... Rf6 {[%clk 0:01:05.3]} 23. Bb5 {[%clk 0:01:40.3]} 23...
Re7 {[%clk 0:00:48.7]} 24. Bd8 {[%clk 0:01:37.7]} 24... Ne4+ {[%clk 0:00:46.7]}
25. Kg1 {[%clk 0:01:34]} 25... Nxd2 {[%clk 0:00:43]} 26. Bxe7 {[%clk 0:01:32.9]}
26... Re6 {[%clk 0:00:36.4]} 27. Bxg5 {[%clk 0:01:28.3]} 27... Nxf3+ {[%clk
0:00:36.3]} 28. gxf3 {[%clk 0:01:28.5]} 28... Rg6 {[%clk 0:00:37.2]} 29. h4
{[%clk 0:01:28.6]} 29... f6 {[%clk 0:00:37.9]} 30. f4 {[%clk 0:01:25.5]} 30...
fxg5 {[%clk 0:00:38.4]} 31. fxg5 {[%clk 0:01:25.2]} 31... Re6 {[%clk 0:00:39.3]}
32. Bd3 {[%clk 0:01:23]} 32... Re3 {[%clk 0:00:36.9]} 33. Kf2 {[%clk 0:00:58]}
33... Rh3 {[%clk 0:00:35.5]} 34. Bf5 {[%clk 0:00:47.8]} 34... Rxh4 {[%clk
0:00:33.6]} 35. Kg3 {[%clk 0:00:43.9]} 1-0

[Event "Early-Titled-Tuesday-Blitz-March-05-2024"]
[Site "Chess.com"]
[Date "2024.03.05"]
[Round "7"]
[White "Viacheslav92"]
[Black "Cheer_Down"]
[Result "0-1"]
[WhiteElo "2517"]
[BlackElo "2422"]
[TimeControl "180+1"]
[EndTime "9:18:41 PST"]
[Termination "Cheer_Down won by checkmate"]

1. d4 {[%clk 0:03:00.9]} 1... d5 {[%clk 0:02:58.8]} 2. Bg5 {[%clk 0:02:48.5]}
2... Nf6 {[%clk 0:02:58]} 3. Bxf6 {[%clk 0:02:43.8]} 3... exf6 {[%clk 0:02:58]}
4. e3 {[%clk 0:02:44.4]} 4... c5 {[%clk 0:02:58.2]} 5. c4 {[%clk 0:02:44.5]}
5... cxd4 {[%clk 0:02:55.3]} 6. exd4 {[%clk 0:02:45.4]} 6... Bb4+ {[%clk
0:02:54.4]} 7. Nc3 {[%clk 0:02:45.2]} 7... O-O {[%clk 0:02:53.9]} 8. cxd5 {[%clk
0:02:41.2]} 8... Qxd5 {[%clk 0:02:52.2]} 9. Ne2 {[%clk 0:02:41.8]} 9... Re8
{[%clk 0:02:45.7]} 10. Qd2 {[%clk 0:02:41.7]} 10... Bxc3 {[%clk 0:02:35.3]} 11.
Qxc3 {[%clk 0:02:42.6]} 11... Nc6 {[%clk 0:02:31.6]} 12. O-O-O {[%clk 0:02:41]}
12... Qxa2 {[%clk 0:02:29]} 13. Qa3 {[%clk 0:02:39.1]} 13... Qxa3 {[%clk
0:02:09]} 14. bxa3 {[%clk 0:02:37.6]} 14... Bd7 {[%clk 0:01:56.4]} 15. Kb2
{[%clk 0:02:33.5]} 15... Na5 {[%clk 0:01:49.4]} 16. Nc3 {[%clk 0:02:33]} 16...
Rac8 {[%clk 0:01:47.3]} 17. Bd3 {[%clk 0:02:31.6]} 17... Nc4+ {[%clk 0:01:45.1]}
18. Bxc4 {[%clk 0:02:31.1]} 18... Rxc4 {[%clk 0:01:46]} 19. Rhe1 {[%clk
0:02:29.5]} 19... Rxe1 {[%clk 0:01:42.7]} 20. Rxe1 {[%clk 0:02:30.4]} 20... Rxd4
{[%clk 0:01:41.6]} 21. Ne4 {[%clk 0:02:22.6]} 21... Bc6 {[%clk 0:01:31.2]} 22.
Nc5 {[%clk 0:02:20.4]} 22... Rd2+ {[%clk 0:01:26]} 23. Kc3 {[%clk 0:02:19.9]}
23... Rxf2 {[%clk 0:01:25.3]} 24. Nxb7 {[%clk 0:02:19.8]} 24... g5 {[%clk
0:01:18.8]} 25. Nd8 {[%clk 0:02:14.1]} 25... Bxg2 {[%clk 0:01:13.2]} 26. Re7
{[%clk 0:02:14.4]} 26... Bd5 {[%clk 0:01:06.9]} 27. Rd7 {[%clk 0:02:06.5]} 27...
Be6 {[%clk 0:00:50.4]} 28. Rxa7 {[%clk 0:02:05.7]} 28... Rxh2 {[%clk 0:00:49.2]}
29. a4 {[%clk 0:02:01]} 29... g4 {[%clk 0:00:48.4]} 30. Ra8 {[%clk 0:01:59.6]}
30... Kg7 {[%clk 0:00:47.8]} 31. Ra7 {[%clk 0:02:00.2]} 31... Kg6 {[%clk
0:00:47.6]} 32. Nc6 {[%clk 0:01:57.4]} 32... g3 {[%clk 0:00:42.9]} 33. Ra8
{[%clk 0:01:58]} 33... Kg7 {[%clk 0:00:39.8]} 34. Ne7 {[%clk 0:01:57.7]} 34...
g2 {[%clk 0:00:30.6]} 35. Rg8+ {[%clk 0:01:42.6]} 35... Kh6 {[%clk 0:00:30.4]}
36. a5 {[%clk 0:01:43.4]} 36... Kh5 {[%clk 0:00:29.9]} 37. a6 {[%clk 0:01:41.1]}
37... Bg4 {[%clk 0:00:29.4]} 38. Nd5 {[%clk 0:01:34.1]} 38... Rh3+ {[%clk
0:00:24.4]} 39. Kb2 {[%clk 0:01:29.4]} 39... Rf3 {[%clk 0:00:23.3]} 40. a7
{[%clk 0:01:06]} 40... g1=Q {[%clk 0:00:23.1]} 41. a8=Q {[%clk 0:01:06.9]} 41...
Qg2+ {[%clk 0:00:22.8]} 42. Kc1 {[%clk 0:01:05.9]} 42... Rf1# {[%clk 0:00:23.1]}
0-1

[Event "Early-Titled-Tuesday-Blitz-March-05-2024"]
[Site "Chess.com"]
[Date "2024.03.05"]
[Round "7"]
[White "rnanjo"]
[Black "FlemingA"]
[Result "1-0"]
[WhiteElo "2562"]
[BlackElo "2440"]
[TimeControl "180+1"]
[EndTime "9:18:42 PST"]
[Termination "rnanjo won by checkmate"]

1. e4 {[%clk 0:03:00.1]} 1... e6 {[%clk 0:02:58.7]} 2. d4 {[%clk 0:02:58.9]}
2... d5 {[%clk 0:02:44.2]} 3. e5 {[%clk 0:02:58.9]} 3... b6 {[%clk 0:02:40.8]}
4. c3 {[%clk 0:02:56.7]} 4... Ba6 {[%clk 0:02:36.5]} 5. Bxa6 {[%clk 0:02:55.8]}
5... Nxa6 {[%clk 0:02:36.4]} 6. Qa4+ {[%clk 0:02:55.9]} 6... Qd7 {[%clk
0:02:28.9]} 7. Qxa6 {[%clk 0:02:55.7]} 7... f6 {[%clk 0:02:29.7]} 8. Nf3 {[%clk
0:02:44.3]} 8... Ne7 {[%clk 0:02:24.5]} 9. a4 {[%clk 0:02:43.4]} 9... Nc6 {[%clk
0:02:20.2]} 10. O-O {[%clk 0:02:34]} 10... Be7 {[%clk 0:02:17.4]} 11. Re1 {[%clk
0:02:33.1]} 11... O-O {[%clk 0:02:16.5]} 12. Qe2 {[%clk 0:02:02.5]} 12... Rae8
{[%clk 0:02:12.2]} 13. b3 {[%clk 0:01:54.1]} 13... Na5 {[%clk 0:02:07.4]} 14.
Nbd2 {[%clk 0:01:53.6]} 14... c5 {[%clk 0:02:00.2]} 15. Ba3 {[%clk 0:01:49]}
15... cxd4 {[%clk 0:01:37.3]} 16. Bxe7 {[%clk 0:01:46.9]} 16... Qxe7 {[%clk
0:01:38.2]} 17. Nxd4 {[%clk 0:01:38.6]} 17... f5 {[%clk 0:01:28.2]} 18. Nb5
{[%clk 0:01:30.2]} 18... Rc8 {[%clk 0:01:22.6]} 19. Rac1 {[%clk 0:01:28.6]}
19... Nb7 {[%clk 0:01:15.2]} 20. Nxa7 {[%clk 0:01:26.1]} 20... Ra8 {[%clk
0:01:14.2]} 21. Nb5 {[%clk 0:01:26.3]} 21... Nc5 {[%clk 0:01:14.8]} 22. Rb1
{[%clk 0:01:18.2]} 22... g5 {[%clk 0:01:10.9]} 23. Nf3 {[%clk 0:01:17.7]} 23...
g4 {[%clk 0:01:06.7]} 24. Nfd4 {[%clk 0:01:17.7]} 24... Ne4 {[%clk 0:01:05.6]}
25. Nd6 {[%clk 0:01:17.5]} 25... Ng5 {[%clk 0:01:01.5]} 26. f4 {[%clk
0:01:11.7]} 26... gxf3 {[%clk 0:00:59.5]} 27. gxf3 {[%clk 0:01:08.8]} 27... Kh8
{[%clk 0:00:57]} 28. Kh1 {[%clk 0:01:08.1]} 28... Rg8 {[%clk 0:00:49.3]} 29. Rg1
{[%clk 0:00:58.6]} 29... Nh3 {[%clk 0:00:49.5]} 30. Rg3 {[%clk 0:00:56.5]} 30...
Qh4 {[%clk 0:00:38.6]} 31. Qg2 {[%clk 0:00:56.1]} 31... Rxg3 {[%clk 0:00:09.3]}
32. Qxg3 {[%clk 0:00:57]} 32... Nf2+ {[%clk 0:00:09.5]} 33. Kg2 {[%clk
0:00:56.2]} 33... Rg8 {[%clk 0:00:09.6]} 34. Nf7# {[%clk 0:00:56.2]} 1-0

[Event "Early-Titled-Tuesday-Blitz-March-05-2024"]
[Site "Chess.com"]
[Date "2024.03.05"]
[Round "7"]
[White "tetrix83"]
[Black "moro182"]
[Result "0-1"]
[WhiteElo "2636"]
[BlackElo "2834"]
[TimeControl "180+1"]
[EndTime "9:18:46 PST"]
[Termination "moro182 won on time"]

1. e4 {[%clk 0:02:59.7]} 1... g6 {[%clk 0:03:00.9]} 2. d4 {[%clk 0:02:59.1]}
2... Bg7 {[%clk 0:03:01.8]} 3. Nf3 {[%clk 0:02:59.5]} 3... d6 {[%clk 0:03:01.6]}
4. c3 {[%clk 0:03:00]} 4... Nf6 {[%clk 0:03:02]} 5. Bd3 {[%clk 0:03:00.6]} 5...
O-O {[%clk 0:03:02.7]} 6. O-O {[%clk 0:03:01.2]} 6... Nc6 {[%clk 0:03:02.6]} 7.
Re1 {[%clk 0:03:01.6]} 7... e5 {[%clk 0:03:03.1]} 8. h3 {[%clk 0:03:01.7]} 8...
Nh5 {[%clk 0:03:03.5]} 9. Be3 {[%clk 0:03:01.1]} 9... h6 {[%clk 0:03:03]} 10.
Nbd2 {[%clk 0:03:00.3]} 10... Qf6 {[%clk 0:03:02.5]} 11. Bf1 {[%clk 0:02:57.9]}
11... Nf4 {[%clk 0:03:01.1]} 12. Kh2 {[%clk 0:02:56.8]} 12... g5 {[%clk
0:03:01.1]} 13. g3 {[%clk 0:02:56.8]} 13... g4 {[%clk 0:02:54.8]} 14. dxe5
{[%clk 0:02:28.5]} 14... dxe5 {[%clk 0:02:51.8]} 15. hxg4 {[%clk 0:02:24.2]}
15... Bxg4 {[%clk 0:02:49.8]} 16. gxf4 {[%clk 0:02:15.9]} 16... exf4 {[%clk
0:02:49.5]} 17. Bd4 {[%clk 0:02:16]} 17... Nxd4 {[%clk 0:02:32.7]} 18. cxd4
{[%clk 0:02:14.2]} 18... Qg6 {[%clk 0:02:33.2]} 19. Qb3 {[%clk 0:02:02.8]} 19...
Kh8 {[%clk 0:02:26.3]} 20. Bg2 {[%clk 0:02:00.5]} 20... Rg8 {[%clk 0:02:24.6]}
21. Rh1 {[%clk 0:01:31.5]} 21... Be6 {[%clk 0:01:52.3]} 22. d5 {[%clk
0:00:58.4]} 22... Bd4 {[%clk 0:01:47.3]} 23. Nh4 {[%clk 0:00:53.8]} 23... Qg4
{[%clk 0:01:31.7]} 24. Kg1 {[%clk 0:00:53.9]} 24... Qe2 {[%clk 0:01:25]} 25. Qf3
{[%clk 0:00:44.9]} 25... Qxd2 {[%clk 0:01:13]} 26. Nf5 {[%clk 0:00:38.1]} 26...
Bxf5 {[%clk 0:01:02.6]} 27. exf5 {[%clk 0:00:38]} 27... Rg3 {[%clk 0:00:54.7]}
28. Rd1 {[%clk 0:00:03.6]} 28... Bxf2+ {[%clk 0:00:50.5]} 29. Kh2 {[%clk
0:00:02.1]} 29... Qe3 {[%clk 0:00:49.9]} 30. Qxe3 {[%clk 0:00:01.6]} 30... fxe3
{[%clk 0:00:50.8]} 0-1

[Event "Early-Titled-Tuesday-Blitz-March-05-2024"]
[Site "Chess.com"]
[Date "2024.03.05"]
[Round "7"]
[White "Mikhail_Golubev"]
[Black "Fandorine"]
[Result "0-1"]
[WhiteElo "2662"]
[BlackElo "2930"]
[TimeControl "180+1"]
[EndTime "9:18:48 PST"]
[Termination "Fandorine won by resignation"]

1. e4 {[%clk 0:03:00.9]} 1... e5 {[%clk 0:03:00.1]} 2. Nf3 {[%clk 0:03:00.8]}
2... Nc6 {[%clk 0:03:00.2]} 3. Bc4 {[%clk 0:03:00.8]} 3... Nf6 {[%clk
0:02:59.2]} 4. Ng5 {[%clk 0:03:00.1]} 4... d5 {[%clk 0:02:59.1]} 5. exd5 {[%clk
0:03:00.4]} 5... b5 {[%clk 0:02:59.4]} 6. Bf1 {[%clk 0:02:59.4]} 6... Nxd5
{[%clk 0:02:58.7]} 7. Bxb5 {[%clk 0:02:52.2]} 7... Bb7 {[%clk 0:02:59]} 8. Nf3
{[%clk 0:02:49.6]} 8... Bd6 {[%clk 0:02:37.1]} 9. O-O {[%clk 0:02:42.7]} 9...
O-O {[%clk 0:02:21.8]} 10. d3 {[%clk 0:02:42.6]} 10... Nd4 {[%clk 0:02:15.2]}
11. Bc4 {[%clk 0:02:26.6]} 11... Nb6 {[%clk 0:02:02.4]} 12. Nxd4 {[%clk
0:02:10.2]} 12... Nxc4 {[%clk 0:01:44.1]} 13. Nf3 {[%clk 0:01:33.4]} 13... Nb6
{[%clk 0:01:37.5]} 14. Re1 {[%clk 0:01:32.2]} 14... Qf6 {[%clk 0:01:27.2]} 15.
Nc3 {[%clk 0:01:30]} 15... Rae8 {[%clk 0:01:27.3]} 16. Ne4 {[%clk 0:01:24.4]}
16... Qd8 {[%clk 0:01:24.4]} 17. Be3 {[%clk 0:01:13.9]} 17... f5 {[%clk
0:01:23.9]} 18. Nxd6 {[%clk 0:01:13.9]} 18... cxd6 {[%clk 0:01:20]} 19. Bxb6
{[%clk 0:01:04.8]} 19... Qxb6 {[%clk 0:01:19.5]} 20. Nd2 {[%clk 0:01:05]} 20...
Re6 {[%clk 0:01:16.2]} 21. Nc4 {[%clk 0:00:51.1]} 21... Qc5 {[%clk 0:01:03.6]}
22. b4 {[%clk 0:00:41]} 22... Qd5 {[%clk 0:01:00.4]} 23. Ne3 {[%clk 0:00:39.6]}
23... Qd4 {[%clk 0:00:54.7]} 24. Qd2 {[%clk 0:00:07.4]} 24... f4 {[%clk
0:00:51]} 25. Nf1 {[%clk 0:00:03.6]} 25... Rg6 {[%clk 0:00:49.7]} 26. g3 {[%clk
0:00:02.2]} 26... fxg3 {[%clk 0:00:43]} 27. hxg3 {[%clk 0:00:02.1]} 27... Rh6
{[%clk 0:00:41.3]} 0-1